Workbook

Sheet Документ
A2: Сведения о расходах бюджета Заволжского муниципального района по разделам и подразделам классификации расходов бюджетов в 2024 году
A4: Наименование | B4: Раздел/подраздел | D4: План | F4: Исполнено за 2024 год, руб. | H4: Исполнено к первоначальному плану гр.5/гр.3 | I4: Отклонение фактических значений показателей расходов от уточненных плановых значений | J4: Исполнено к уточненному плану гр.5/гр.4
D5: Утверждено на 2024 год (№ 55 от 11.12.2023 в первоначальной редакции), руб. | E5: Утверждено на 2024 год (№ 55 в редакции от 25.12.2024 № 59), руб. | G5: Первоначальный план к уточненному
A6: 1 | B6: 2 | D6: 3 | E6: 4 | F6: 5 | H6: 6 | J6: 7
A7: ОБЩЕГОСУДАРСТВЕННЫЕ ВОПРОСЫ | B7: 0100 | D7: =D8+D9+D10+D11+D12+D13 -> 77,202,503.90 | E7: =E8+E9+E10+E11+E12+E13 -> 87,252,153.78 | F7: =F8+F9+F10+F11+F12+F13 -> 80,763,736.86 | G7: =E7/D7 -> 113.0% | H7: =F7/D7 -> 104.6% | I7: =F7-E7 -> -6,488,416.92 | J7: =F7/E7 -> 92.6%
A8: Функционирование высшего должностного лица субъекта Российской Федерации и муниципального образования | B8: 0102 | D8: 2,364,265.00 | E8: 3,293,146.47 | F8: 3,293,146.47 | G8: =E8/D8 -> 139.3% | H8: =F8/D8 -> 139.3% | I8: 0.00 | J8: =F8/E8 -> 100.0%
A9: Функционирование Правительства Российской Федерации, высших исполнительных органов государственной власти субъектов Российской Федерации, местных администраций | B9: 0104 | D9: 38,672,640.59 | E9: 41,738,271.25 | F9: 41,326,528.92 | G9: =E9/D9 -> 107.9% | H9: =F9/D9 -> 106.9% | I9: -411,742.33 | J9: 99.0%
A10: Судебная система | B10: 0105 | D10: 5,240.71 | E10: 0.00 | F10: 0.00 | G10: 0.0% | H10: 0.0% | I10: 0.00
A11: Обеспечение деятельности финансовых, налоговых и таможенных органов и органов финансового (финансово-бюджетного) надзора | B11: 0106 | D11: 10,688,999.90 | E11: 8,659,082.20 | F11: 7,989,014.48 | G11: 81.0% | H11: 74.7% | I11: -670,067.72 | J11: 92.3%
A12: Резервные фонды | B12: 0111 | D12: 300,000.00 | E12: 300,000.00 | F12: 0.00 | G12: 100.0% | H12: 0.0% | I12: -300,000.00 | J12: 0.0%
A13: Другие общегосударственные вопросы | B13: 0113 | D13: 25,171,357.70 | E13: 33,261,653.86 | F13: 28,155,046.99 | G13: 132.1% | H13: 111.9% | I13: -5,106,606.87 | J13: 84.6%
A14: НАЦИОНАЛЬНАЯ БЕЗОПАСНОСТЬ И ПРАВООХРАНИТЕЛЬНАЯ ДЕЯТЕЛЬНОСТЬ | B14: 0300 | D14: =D15+D16 -> 1,239,756.00 | E14: =E15+E16 -> 2,228,428.00 | F14: 1,976,972.55 | G14: 45302683429.0% | H14: 159.5% | I14: -251,455.45 | J14: 88.7%
A15: Защита населения и территории от чрезвычайных ситуаций природного и техногенного характера, пожарная безопасность | B15: 0310 | D15: 1,118,428.00 | E15: 1,858,428.00 | F15: 1,621,699.00 | G15: 166.2% | H15: 145.0% | I15: -236,729.00 | J15: 87.3%
A16: Защита населения и территории от чрезвычайных ситуаций природного и техногенного характера, пожарная безопасность | B16: 0314 | D16: 121,328.00 | E16: 370,000.00 | F16: 355,273.55 | G16: 305.0% | H16: 292.8% | I16: -14,726.45 | J16: 96.0%
A17: НАЦИОНАЛЬНАЯ ЭКОНОМИКА | B17: 0400 | D17: =D18+D19+D20 -> 33,573,532.77 | E17: =E18+E19+E20 -> 47,186,737.95 | F17: 40,172,021.94 | G17: 140.5% | H17: 119.7% | I17: -7,014,716.01 | J17: 85.1%
A18: Сельское хозяйство и рыболовство | B18: 0405 | D18: 1,294,529.45 | E18: 813,637.20 | F18: 533,488.00 | G18: 62.9% | H18: 41.2% | I18: -280,149.20 | J18: 65.6%
A19: Транспорт | B19: 0408 | D19: 170,000.00 | E19: 350,000.00 | F19: 350,000.00 | G19: 205.9% | H19: 205.9% | I19: 0.00 | J19: 100.0%
A20: Дорожное хозяйство (дорожные фонды) | B20: 0409 | D20: 32,109,003.32 | E20: 46,023,100.75 | F20: 39,288,533.94 | G20: 143.3% | H20: 122.4% | I20: -6,734,566.81 | J20: 85.4%
A21: ЖИЛИЩНО-КОММУНАЛЬНОЕ ХОЗЯЙСТВО | B21: 0500 | D21: =D22+D23+D24+D25 -> 45,597,381.38 | E21: =E22+E23+E24+E25 -> 82,595,218.44 | F21: 65,607,472.18 | G21: 181.1% | H21: 143.9% | I21: =F21-E21 -> -16,987,746.26 | J21: 79.4%
A22: Жилищное хозяйство | B22: 0501 | D22: 8,047,988.91 | E22: 11,883,407.05 | F22: 11,504,500.56 | G22: 147.7% | H22: 142.9% | I22: -378,906.49 | J22: 96.8%
A23: Коммунальное хозяйство | B23: 0502 | D23: 17,228,950.10 | E23: 44,904,168.47 | F23: 31,341,000.00 | G23: 260.6% | H23: 181.9% | I23: -13,563,168.47 | J23: 69.8%
A24: Благоустройство | B24: 0503 | D24: 12,839,242.37 | E24: 23,503,397.57 | F24: 20,461,230.80 | G24: 183.1% | H24: 159.4% | I24: -3,042,166.77 | J24: 87.1%
A25: Другие вопросы в области жилищно-коммунального хозяйства | B25: 0505 | D25: 7,481,200.00 | E25: 2,304,245.35 | F25: 2,300,740.82 | G25: 30.8% | H25: 30.8% | I25: -3,504.53 | J25: 99.8%
A26: ОХРАНА ОКРУЖАЮЩЕЙ СРЕДЫ | B26: 0600 | D26: =D27+D28 -> 664,901,143.44 | E26: =E27+E28 -> 665,436,239.01 | F26: 617,734,222.48 | G26: 100.1% | H26: 92.9% | I26: -47,702,016.53 | J26: 92.8%
A27: Сбор, удаление отходов и очистка сточных вод | B27: 0602 | D27: 126,021.42 | E27: 565,917.00 | F27: 565,917.00 | G27: 449.1% | H27: =F27/D27 -> 449.1% | I27: 0.00 | J27: 100.0%
A28: Охрана объектов растительного и животного мира и среды их обитания | B28: 0603 | D28: 664,775,122.02 | E28: 664,870,322.01 | F28: 617,168,305.48 | G28: 100.0% | H28: 92.8% | I28: -47,702,016.53 | J28: 92.8%
A29: ОБРАЗОВАНИЕ | B29: 0700 | D29: =D30+D31+D32+D33+D34+D35 -> 283,012,823.09 | E29: =E30+E31+E32+E33+E34+E35 -> 330,696,894.22 | F29: 296,657,182.36 | G29: 116.8% | H29: 104.8% | I29: -34,039,711.86 | J29: 89.7%
A30: Дошкольное образование | B30: 0701 | D30: 92,237,378.78 | E30: 111,224,790.59 | F30: 100,278,698.54 | G30: 120.6% | H30: 108.7% | I30: -10,946,092.05 | J30: 90.2%
A31: Общее образование | B31: 0702 | D31: 150,927,376.86 | E31: 176,785,353.67 | F31: 155,370,898.32 | G31: 117.1% | H31: 102.9% | I31: -21,414,455.35 | J31: 87.9%
A32: Дополнительное образование детей | B32: 0703 | D32: 22,706,494.08 | E32: 24,552,800.33 | F32: 24,083,698.56 | G32: 108.1% | H32: =F32/D32 -> 106.1% | I32: -469,101.77 | J32: =F32/E32 -> 98.1%
A33: Профессиональная подготовка, переподготовка и повышение квалификации | B33: 0705 | D33: 85,000.00 | E33: 62,000.00 | F33: 18,000.00 | G33: 72.9% | H33: 21.2% | I33: -44,000.00 | J33: 29.0%
A34: Молодежная политика | B34: 0707 | D34: 15,000.00 | E34: 145,200.00 | F34: 111,500.00 | G34: 968.0% | H34: 743.3% | I34: -33,700.00 | J34: 76.8%
A35: Другие вопросы в области образования | B35: 0709 | D35: 17,041,573.37 | E35: 17,926,749.63 | F35: 16,794,386.94 | G35: 105.2% | H35: 98.5% | I35: -1,132,362.69 | J35: 93.7%
A36: КУЛЬТУРА, КИНЕМАТОГРАФИЯ | B36: 0800 | D36: =D37 -> 4,176,322.11 | E36: =E37 -> 5,157,755.66 | F36: 5,157,755.66 | G36: 123.5% | H36: 123.5% | I36: 0.00 | J36: 100.0%
A37: Культура | B37: 0801 | D37: 4,176,322.11 | E37: 5,157,755.66 | F37: 5,157,755.66 | G37: 123.5% | H37: 123.5% | I37: 0.00 | J37: 100.0%
A38: СОЦИАЛЬНАЯ ПОЛИТИКА | B38: 1000 | D38: =D39+D40+D41+D42 -> 7,738,062.65 | E38: =E39+E40+E41+E42 -> 9,488,390.90 | F38: 8,904,991.09 | G38: 122.6% | H38: 115.1% | I38: -583,399.81 | J38: 93.9%
A39: Пенсионное обеспечение | B39: 1001 | D39: 3,219,654.00 | E39: 3,692,125.53 | F39: 3,593,647.80 | G39: 114.7% | H39: 111.6% | I39: -98,477.73 | J39: 97.3%
A40: Социальное обеспечение населения | B40: 1003 | D40: 360,000.00 | E40: 595,482.50 | F40: 595,482.50 | G40: 165.4% | H40: 165.4% | I40: 0.00 | J40: 100.0%
A41: Охрана семьи и детства | B41: 1004 | D41: 3,958,408.65 | E41: 3,100,782.87 | F41: 2,615,860.79 | G41: 78.3% | H41: 66.1% | I41: =F41-E41 -> -484,922.08 | J41: 84.4%
A42: Другие вопросы в области социальной политики | B42: 1006 | D42: 200,000.00 | E42: 2,100,000.00 | F42: 2,100,000.00 | G42: 1050.0% | H42: 1050.0% | I42: 0.00 | J42: 100.0%
A43: ФИЗИЧЕСКАЯ КУЛЬТУРА И СПОРТ | B43: 1100 | D43: =D44+D45 -> 16,925,045.75 | E43: =E44+E45 -> 15,459,694.72 | F43: 12,687,319.47 | G43: 91.3% | H43: 75.0% | I43: -2,772,375.25 | J43: 82.1%
A44: Физическая культура | B44: 1101 | D44: 885,313.26 | E44: 990,000.00 | F44: 968,050.23 | G44: 111.8% | H44: 109.3% | I44: -21,949.77 | J44: 97.8%
A45: Спорт высших достижений | B45: 1103 | D45: 16,039,732.49 | E45: 14,469,694.72 | F45: 11,719,269.24 | G45: 90.2% | H45: 73.1% | I45: -2,750,425.48 | J45: 81.0%
A46: ОБСЛУЖИВАНИЕ ГОСУДАРСТВЕННОГО И МУНИЦИПАЛЬНОГО ДОЛГА | B46: 1300 | D46: =D47 -> 50,000.00 | E46: =E47 -> 0.00 | F46: 0.00 | G46: =E46/D46 -> 0.0% | H46: 0.0% | I46: 0.00 | J46: =F46/E46 -> 
A47: Обслуживание государственного внутреннего и муниципального долга | B47: 1301 | D47: 50,000.00 | E47: 0.00 | F47: 0.00 | G47: 0.0% | H47: =F47/D47 -> 0.0% | I47: 0.00 | J47: =F47/E47 -> 
A48: Итого: | D48: =D7+D14+D17+D21+D26+D29+D36+D38+D43+D46 -> 1,134,416,571.09 | E48: =E7+E14+E17+E21+E26+E29+E36+E38+E43+E46 -> 1,245,501,512.68 | F48: =F7+F14+F17+F21+F26+F29+F36+F38+F43+F46 -> 1,129,661,674.59 | G48: 109.8% | H48: 99.6% | I48: -115839838.1 | J48: 90.7%
